bitfinex/quotes_ETHUSD_20250529
["timestamp","ask_amount","ask_price","bid_price","bid_amount"]
[1748539381484,0.88672398,2649.9,2649.2,5.07988506]
[1748539381485,0.3512243,2649.9,2649.5,10.0]
[1748539381635,0.3512243,2649.9,2649.5,3.7742379]
[1748539381840,0.3512243,2649.9,2649.5,0.55]
[1748539382060,0.3512243,2649.9,2649.8,14.98986972]
[1748539382379,0.3512243,2649.9,2649.8,4.98986972]
[1748539383079,0.3512243,2649.9,2649.8,1.216]
[1748539383243,0.3512243,2649.9,2649.8,11.216]
[1748539383665,0.3512243,2649.9,2649.8,1.766]
[1748539383841,0.3512243,2649.9,2649.8,7.19937027]
[1748539385187,1.2551,2650.7,2650.0,3.77346012]
[1748539385188,3.77280199,2650.6,2650.0,3.77346012]
[1748539385495,5.02769778,2650.7,2649.9,10.0]
[1748539385649,3.77330834,2650.2,2649.8,2.87550055]
[1748539385863,3.77330834,2650.2,2649.8,1.216]
[1748539386330,3.77323683,2650.3,2649.8,14.98985352]
[1748539386530,3.77323683,2650.3,2649.8,4.98985352]
[1748539386730,1.2551,2650.7,2649.9,0.55]
[1748539386942,1.2027,2651.0,2650.5,3.77275823]
[1748539387162,1.2027,2651.0,2650.2,1.2018]
[1748539387361,3.77161773,2651.4,2649.8,1.2018]
[1748539387362,3.77322354,2650.3,2649.8,1.2018]
[1748539387749,3.77331185,2650.2,2649.8,1.2018]
[1748539388069,3.7730403,2650.4,2649.8,1.2018]
[1748539388070,3.77323462,2650.3,2649.8,1.2018]
[1748539388260,3.77294216,2650.5,2649.9,0.55]
[1748539388460,3.77315005,2650.4,2649.8,4.97565807]
[1748539388763,3.77279775,2650.6,2650.0,3.77358267]
[1748539389156,3.77279775,2650.6,2650.1,3.77338401]
[1748539389958,1.2027,2650.7,2650.3,3.77307505]
[1748539390190,3.77175662,2651.3,2650.3,3.77305043]
[1748539390191,1.2691,2651.2,2650.3,3.77305043]
[1748539390394,1.2691,2650.6,2650.1,10.0]
[1748539390581,1.2691,2650.6,2650.0,3.77353243]
[1748539390582,3.77295589,2650.5,2650.0,3.77353243]
[1748539390784,5.04187045,2650.6,2650.1,4.32343145]
[1748539391098,3.77298256,2650.5,2649.9,3.77362727]
[1748539391299,3.77312483,2650.4,2649.9,4.3237215]
[1748539391507,0.37729826,2650.5,2649.9,0.38146059]
[1748539391889,1.2344,2650.3,2649.6,1.3001]
[1748539392212,3.77336605,2650.2,2649.7,3.77399005]
[1748539392574,3.77336867,2650.2,2649.7,13.77394788]
[1748539392770,5.00761544,2650.3,2649.6,1.3001]
[1748539392771,3.77354882,2650.1,2649.6,1.3001]
[1748539392973,3.77388404,2649.8,2649.6,0.38063092]
[1748539393175,3.7738083,2649.9,2649.3,1.3001]
[1748539393399,3.77393881,2649.8,2649.4,0.55]
[1748539393570,3.77366325,2650.0,2649.5,3.77419993]
[1748539393779,1.2344,2650.3,2649.4,14.32437164]
[1748539393780,3.77374035,2649.9,2649.4,14.32437164]
[1748539394015,3.77374035,2649.9,2649.5,10.0]
[1748539394200,3.77364968,2650.0,2649.5,13.77427501]
[1748539394408,1.2344,2650.3,2649.3,1.3001]
[1748539394590,3.77377868,2649.9,2649.1,3.77486693]
[1748539394776,1.2344,2650.3,2649.5,3.77426924]
[1748539394777,3.77368568,2650.0,2649.5,3.77426924]
[1748539394977,3.77356283,2650.1,2649.6,3.77413053]
[1748539395232,1.2344,2650.3,2649.5,11.3015]
[1748539395534,3.77372731,2649.9,2649.5,1.3015]
[1748539395686,1.2344,2650.3,2649.5,1.3015]
[1748539395891,1.2344,2650.3,2649.7,0.55]
[1748539396089,3.77330193,2650.2,2649.7,4.32393995]
[1748539396313,3.77330193,2650.2,2649.8,10.0]
[1748539396790,5.00756619,2650.3,2649.7,5.26389366]
[1748539396990,3.77344487,2650.1,2649.7,1.48995371]
[1748539397283,3.77352161,2650.1,2649.6,3.77408009]
[1748539397478,3.77352161,2650.1,2649.7,12.544524]
[1748539397804,1.2344,2650.3,2649.2,16.848827]
[1748539397985,1.2344,2650.3,2649.5,3.77429616]
[1748539397986,5.00761805,2650.3,2649.5,3.77429616]
[1748539398192,3.77335783,2650.2,2649.8,10.0]
[1748539398401,3.77335783,2650.2,2649.7,3.77391373]
[1748539398610,3.77335783,2650.2,2649.6,10.0]
[1748539398611,3.77335783,2650.2,2649.6,13.77407854]
[1748539398822,3.7733772,2650.2,2649.7,2.829524]
[1748539399119,5.00768222,2650.3,2649.8,10.0]
[1748539399329,5.00768222,2650.3,2649.8,3.77384949]
[1748539399330,5.00761196,2650.3,2649.8,3.77384949]
[1748539399528,3.77331077,2650.2,2649.8,10.0]
[1748539399731,3.77260389,2650.7,2649.8,10.0]
[1748539399732,1.2628,2650.6,2650.2,3.77317174]
[1748539399892,3.77268932,2650.7,2650.1,22.939439]
[1748539399893,3.77266567,2650.7,2650.1,22.939439]
[1748539400094,3.77274502,2650.6,2650.1,16.71277744]
[1748539400317,3.77274502,2650.6,2650.2,13.644947]
[1748539400547,3.77266724,2650.7,2650.2,13.010048]
[1748539400703,3.77266724,2650.7,2650.1,5.00323844]
[1748539400704,3.7728215,2650.6,2650.1,5.00323844]
[1748539401253,3.77329219,2650.3,2649.8,1.2299]
[1748539401538,3.77329219,2650.3,2649.8,5.00369616]
[1748539401691,1.2826,2650.2,2649.6,2.286048]
[1748539401891,1.2826,2650.2,2649.2,10.37487739]
[1748539401892,3.77393229,2649.8,2649.3,13.77458047]
[1748539402091,3.77381169,2649.9,2649.3,3.77458047]
[1748539402336,3.77393497,2649.8,2649.3,3.77458047]
[1748539402638,0.75477467,2649.8,2649.2,0.37487739]
[1748539402933,3.77413562,2649.7,2649.2,10.0]
[1748539403131,3.77395019,2649.8,2649.3,10.0]
[1748539403291,3.77395019,2649.8,2649.3,3.77458013]
[1748539403488,3.77395019,2649.8,2649.3,13.77458013]
[1748539403729,3.77401641,2649.7,2649.4,1.2315]
[1748539403891,3.77395053,2649.8,2649.4,11.2315]
[1748539404093,3.77395053,2649.8,2649.4,1.2315]
[1748539404429,3.77402459,2649.7,2649.4,1.2315]
[1748539404586,3.7737448,2649.9,2649.4,1.2315]
[1748539404791,3.77377314,2649.9,2649.4,5.00592165]
[1748539404992,3.77388749,2649.8,2649.4,11.2315]
[1748539405192,0.42793353,2649.9,2649.4,1.2315]
[1748539405393,3.77393129,2649.8,2649.4,1.2315]
[1748539405827,0.42793353,2649.9,2649.1,1.73526169]
[1748539405990,3.77415458,2649.6,2649.2,10.0]
[1748539406197,3.77429846,2649.5,2649.2,10.0]
[1748539406393,3.77429846,2649.5,2649.1,11.73526169]
[1748539406599,3.77405673,2649.7,2649.1,11.73526169]
[1748539406848,3.77418973,2649.6,2649.1,1.73526169]
[1748539407051,3.77432061,2649.5,2649.1,1.73526169]
[1748539407251,3.77422009,2649.6,2649.1,15.51011268]
[1748539407562,3.77422009,2649.6,2649.3,10.0]
[1748539407856,3.7742597,2649.6,2649.1,5.51011033]
[1748539408263,3.7742597,2649.6,2649.2,10.0]
[1748539408645,0.4201584,2649.8,2649.1,11.73526169]
[1748539408646,3.77429721,2649.5,2649.1,11.73526169]
[1748539408853,3.77437533,2649.5,2649.1,0.38456169]
[1748539409050,3.77437533,2649.5,2649.2,10.0]
[1748539409359,3.77437533,2649.5,2648.9,0.55]
[1748539409360,3.77464489,2649.3,2648.9,1.886552]
[1748539409564,3.77464489,2649.3,2648.9,3.39109773]
[1748539409759,0.88471575,2649.5,2649.1,3.77480574]
[1748539409961,4.19410865,2649.8,2649.2,3.77472443]
[1748539409962,3.7740126,2649.7,2649.2,3.77472443]
[1748539410167,4.19408829,2649.8,2649.3,3.7745499]
[1748539410349,0.4201584,2649.8,2649.3,13.7745499]
[1748539410553,0.4201584,2649.8,2649.1,1.886552]
[1748539410760,1.2167,2649.9,2649.3,10.0]
[1748539410940,3.77390624,2649.8,2649.3,3.77452242]
[1748539411334,3.77439756,2649.5,2649.2,2.54497728]
[1748539411534,3.77439756,2649.5,2649.1,4.43152928]
[1748539411834,3.77439756,2649.5,2649.2,10.0]
[1748539412056,3.77439756,2649.5,2649.1,1.886552]
[1748539412369,3.77444448,2649.4,2649.1,3.39242746]
[1748539412553,3.7747443,2649.2,2649.0,1.886552]
[1748539412727,3.77404191,2649.7,2649.0,4.32498471]
[1748539412929,3.77401215,2649.7,2649.1,10.0]
[1748539413171,3.77418782,2649.6,2649.0,1.886552]
[1748539413346,3.77432636,2649.5,2649.0,17.16852656]
[1748539413541,3.77432636,2649.5,2648.9,3.77507618]
[1748539413542,3.77443859,2649.5,2649.1,3.39772096]
[1748539413769,3.77443859,2649.5,2649.0,11.89003279]
[1748539414067,3.77464849,2649.3,2649.0,1.89003279]
[1748539414394,3.77435718,2649.5,2649.0,1.89003279]
[1748539414395,3.77451331,2649.4,2649.0,1.89003279]
[1748539414535,3.77457098,2649.4,2649.0,3.39814382]
[1748539414740,1.2173,2649.8,2649.1,0.55]
[1748539415067,3.77404548,2649.7,2649.2,5.66475723]
[1748539415261,4.99124534,2649.8,2649.2,1.89003279]
[1748539415262,3.77416208,2649.6,2649.2,1.89003279]
[1748539415576,3.77439848,2649.5,2649.2,3.39982335]
[1748539415778,0.75485606,2649.5,2649.2,3.39982335]
[1748539415956,3.77465011,2649.3,2649.1,1.89003279]
[1748539416152,3.77465011,2649.3,2649.0,3.40007995]
[1748539416453,3.77465011,2649.3,2648.8,5.02289164]
[1748539416454,3.77401215,2649.7,2649.1,3.40129059]
[1748539416657,1.2173,2649.8,2649.1,1.89003279]
[1748539416881,3.7744085,2649.5,2649.2,3.40129188]
[1748539417041,3.77416997,2649.6,2649.2,1.89003279]
[1748539417380,3.77431783,2649.5,2649.3,1.89003279]
[1748539417672,0.49910707,2649.7,2649.4,3.40247666]
[1748539417673,3.77423194,2649.6,2649.4,3.40247666]
[1748539417976,3.77429703,2649.5,2649.3,1.89700482]
[1748539418177,3.77443949,2649.4,2649.3,1.89700482]
[1748539418480,3.77436093,2649.5,2649.2,1.51258557]
[1748539418650,3.77420764,2649.6,2649.4,1.89862188]
[1748539418852,3.77404513,2649.7,2649.4,3.41120745]
[1748539419050,1.2173,2649.8,2649.5,3.41230614]
[1748539419281,1.2173,2649.8,2649.4,1.89862188]
[1748539419483,3.77429703,2649.5,2649.4,1.89862188]
[1748539420091,4.52914467,2649.5,2649.4,1.89862188]
[1748539420262,4.52914467,2649.5,2648.9,0.378143]
[1748539420263,3.77443949,2649.4,2649.3,1.89862188]
[1748539421885,4.99118017,2649.8,2649.3,1.89862188]
[1748539421886,3.77408192,2649.7,2649.3,1.89825996]
[1748539422083,3.77408192,2649.7,2649.4,3.41306965]
[1748539422292,3.77429703,2649.5,2649.4,1.89883877]
[1748539422450,0.87653126,2649.7,2649.4,1.89883877]
[1748539422653,3.77409592,2649.7,2649.4,1.89883877]
[1748539422854,1.2173,2649.8,2649.4,1.89883877]
[1748539422855,3.77418265,2649.6,2649.4,1.89883877]
[1748539423762,4.99121641,2649.8,2649.4,1.89883877]
[1748539423763,1.2173,2649.8,2649.4,1.89883877]
[1748539424064,3.77403177,2649.7,2649.4,3.41284653]
[1748539424276,4.15147502,2649.7,2649.4,3.41284653]
[1748539424494,3.77429703,2649.5,2649.4,3.41284653]
[1748539424709,3.77429703,2649.5,2649.3,2.26837904]
[1748539424858,3.77443949,2649.4,2649.3,2.26837904]
[1748539425177,3.77443949,2649.4,2649.3,3.41318151]
[1748539425634,3.77429703,2649.5,2649.3,1.89883877]
[1748539425893,3.77421151,2649.6,2649.3,1.89883877]
[1748539426093,3.77406731,2649.7,2649.4,3.41318151]
[1748539426293,3.77406731,2649.7,2649.4,1.89883877]
[1748539426492,4.31186587,2649.9,2649.5,3.4125047]
[1748539426493,3.77382745,2649.9,2649.5,3.4125047]
[1748539426693,3.77407354,2649.7,2649.6,3.4125047]
[1748539426993,3.77401215,2649.7,2649.6,3.41167836]
[1748539427770,3.77401215,2649.7,2649.5,1.898178]
[1748539427771,3.77415458,2649.6,2649.5,1.898178]
[1748539428120,3.7740947,2649.7,2649.5,1.898178]
[1748539428268,3.77415458,2649.6,2649.5,1.898178]
[1748539428470,3.77415458,2649.6,2649.5,3.41176626]
[1748539428787,3.77415458,2649.6,2649.5,1.898178]
[1748539428971,3.77429703,2649.5,2649.4,1.898178]
[1748539429777,3.77429703,2649.5,2649.2,1.51343278]
[1748539429778,3.77392267,2649.8,2649.3,3.77458061]
[1748539429973,1.246,2650.0,2649.3,3.77458061]
[1748539429974,1.246,2650.0,2649.6,1.89756863]
[1748539430173,4.3648534,2651.0,2649.7,3.41100141]
[1748539430174,1.3369,2650.2,2649.7,3.41100141]
[1748539430395,3.77386972,2649.8,2649.7,1.89756863]
[1748539430587,3.77401215,2649.7,2649.6,1.89756863]
[1748539430870,3.77401215,2649.7,2649.5,1.89756863]
[1748539430871,3.77415458,2649.6,2649.5,1.89756863]
[1748539431429,3.77415458,2649.6,2649.5,1.8978794]
[1748539431723,0.37738697,2649.8,2649.5,1.8978794]
[1748539431876,5.06314425,2649.9,2649.6,3.41114168]
[1748539432076,5.06314425,2649.9,2649.6,1.8977312]
[1748539432077,3.7740494,2649.7,2649.6,1.8977312]
[1748539433477,3.7740494,2649.7,2649.6,3.4111459]
[1748539433673,1.57705877,2650.1,2649.6,3.4111459]
[1748539433906,3.77350072,2650.1,2649.7,3.41132341]
[1748539434115,3.77350072,2650.1,2649.8,3.41132341]
[1748539434315,4.64972489,2650.1,2649.8,1.8977312]
[1748539434485,1.5769579,2650.6,2650.0,1.8977312]
[1748539434669,1.5769579,2650.6,2650.1,3.41094387]
[1748539434670,3.77309873,2650.4,2650.1,3.41094387]
[1748539435700,3.77309873,2650.4,2650.1,1.89768844]
[1748539435882,1.2153,2650.6,2650.2,1.89768844]
[1748539435883,3.77274027,2650.6,2650.2,1.89768844]
[1748539436101,3.77244605,2650.8,2650.4,1.89768844]
[1748539436410,3.77265245,2650.7,2650.5,3.4107841]
[1748539436711,1.2153,2650.9,2650.6,3.41004181]
[1748539436878,3.7724916,2650.8,2650.6,1.89768844]
[1748539437078,3.77250809,2650.8,2650.6,1.89768844]
[1748539437830,4.98760666,2650.9,2650.6,1.89768844]
[1748539437831,3.77258837,2650.7,2650.6,1.89768844]
[1748539438333,3.77258837,2650.7,2650.6,3.41010347]
[1748539438536,3.77301539,2650.4,2650.3,1.89768844]
[1748539438693,3.77315775,2650.3,2650.2,1.89768844]
[1748539438875,3.77330012,2650.2,2650.1,1.89768844]
[1748539439074,3.77344251,2650.1,2650.0,1.89739519]
[1748539439329,5.1021849,2650.0,2649.9,1.89739519]
[1748539439626,3.77372731,2649.9,2649.8,1.89739519]
[1748539439918,3.77386972,2649.8,2649.7,1.89739519]
[1748539440130,1.3286,2650.0,2649.4,1.51342303]
[1748539440282,3.77386972,2649.8,2649.6,1.89806207]
[1748539440483,3.77401215,2649.7,2649.6,1.89806207]
[1748539440681,3.77401215,2649.7,2649.5,1.89806207]
[1748539440682,3.77415458,2649.6,2649.5,1.89806207]
[1748539442322,5.32381538,2650.0,2649.5,1.89806207]
[1748539442323,3.77376782,2649.9,2649.5,1.89806207]
[1748539442494,5.10220579,2650.0,2649.5,1.89806207]
[1748539442693,5.10220579,2650.0,2649.6,3.41169998]
[1748539443018,5.10220579,2650.0,2649.6,1.89804344]
[1748539443019,3.77380254,2649.9,2649.6,1.89804344]
[1748539443917,3.77392793,2649.8,2649.6,3.41134012]
[1748539444483,3.77380474,2649.9,2649.6,3.41134012]
[1748539444683,3.77401215,2649.7,2649.6,3.41134012]
[1748539444979,3.77401215,2649.7,2649.5,1.89804344]
[1748539444980,3.77415458,2649.6,2649.5,1.89804344]
[1748539445797,3.77429703,2649.5,2649.4,1.89804344]
[1748539446123,3.77429703,2649.5,2649.3,1.89804344]
[1748539446124,3.77443949,2649.4,2649.3,1.89804344]
[1748539447381,3.77418373,2649.6,2649.3,1.90025369]
[1748539447580,3.77443949,2649.4,2649.3,1.90025369]
[1748539448428,0.54632196,2649.8,2649.3,1.90025369]
[1748539448629,0.54632196,2649.8,2649.0,1.5151554]
[1748539448630,3.77396219,2649.8,2649.4,3.41540909]
[1748539448804,3.77396219,2649.8,2649.5,3.41475053]
[1748539448805,3.77409463,2649.7,2649.5,3.41475053]
[1748539449100,3.77409463,2649.7,2649.5,1.90025369]
[1748539449735,3.77391996,2649.8,2649.5,1.90025369]
[1748539450040,4.13398837,2650.3,2649.5,1.90025369]
[1748539450041,3.77326461,2650.3,2649.6,1.51425095]
[1748539450241,3.77345238,2650.1,2649.9,1.8977455]
[1748539450902,3.77288605,2650.5,2649.9,3.41199645]
[1748539451106,3.77309582,2650.4,2649.9,1.8977455]
[1748539451306,3.77309582,2650.4,2649.9,3.2177455]
[1748539451609,3.77317025,2650.3,2650.0,3.41041381]
[1748539451970,3.77309356,2650.4,2650.0,3.41041381]
[1748539452250,3.77317693,2650.3,2650.1,3.41041381]
[1748539452432,3.77317693,2650.3,2650.1,1.8977455]
[1748539453464,3.77287304,2650.5,2649.9,1.8977455]
[1748539453752,3.77351068,2650.1,2649.9,1.8977455]
[1748539454247,2.32316577,2650.6,2649.9,1.8977455]
[1748539454407,3.77206662,2651.1,2649.9,1.8977455]
[1748539454408,1.3069,2650.1,2649.9,1.8977455]
[1748539454608,3.77352181,2650.1,2649.9,1.8977455]
[1748539455558,1.2389,2650.4,2649.9,1.8977455]
[1748539455852,3.77348498,2650.1,2649.9,1.8977455]
[1748539456056,3.77348498,2650.1,2649.9,3.4094517]
[1748539456344,3.77348498,2650.1,2649.9,1.89588101]
[1748539457024,3.77320715,2650.3,2649.9,1.89588101]
[1748539457220,3.77344787,2650.1,2649.9,1.89588101]
[1748539457436,3.77344787,2650.1,2649.9,3.40736806]
[1748539457648,3.7735849,2650.0,2649.9,1.89588101]
[1748539457957,3.7735849,2650.0,2649.4,1.7968]
[1748539457958,3.77372731,2649.9,2649.8,1.89588101]
[1748539458525,4.52845853,2649.9,2649.8,1.89588101]
[1748539458723,3.77386972,2649.8,2649.7,1.89588101]
[1748539458921,5.84535853,2649.9,2649.1,1.252]
[1748539458922,2.07163122,2649.9,2649.5,1.89588101]
[1748539459207,2.07163122,2649.9,2649.1,1.252]
[1748539459208,3.77428806,2649.6,2649.4,1.89588101]
[1748539459435,3.77429703,2649.5,2649.4,1.89588101]
[1748539459644,1.3169,2649.9,2649.4,1.89588101]
[1748539459645,3.77421633,2649.6,2649.4,1.89588101]
[1748539459844,1.3169,2649.9,2649.4,1.89588101]
[1748539460053,3.77382515,2649.9,2649.5,3.40827499]
[1748539460259,3.77366154,2650.0,2649.6,1.3303]
[1748539460462,3.77350302,2650.1,2649.7,1.8961264]
[1748539460633,3.77350302,2650.1,2649.7,3.40799094]
[1748539460833,3.7733459,2650.2,2649.8,3.40824341]
[1748539461039,3.77319879,2650.3,2649.8,11.8961264]
[1748539461040,3.7732226,2650.3,2649.8,11.8961264]
[1748539461540,1.63728283,2650.6,2649.8,1.8961264]
[1748539461844,3.77372731,2649.9,2649.8,1.8961264]
[1748539462046,3.77372731,2649.9,2649.7,1.8961264]
[1748539462248,3.77372731,2649.9,2649.7,3.40832403]
[1748539463320,1.2287,2650.1,2649.7,3.40832403]
[1748539463321,3.77349309,2650.1,2649.7,3.40832403]
[1748539463527,1.2287,2650.4,2649.7,3.40832403]
[1748539463744,3.77370205,2650.0,2649.7,1.8961264]
[1748539464046,3.7737698,2649.9,2649.7,1.8961264]
[1748539464233,3.77353654,2650.1,2649.7,1.8961264]
[1748539464438,3.77353654,2650.1,2649.6,3.77414717]
[1748539465259,5.00177044,2650.4,2649.7,3.77397387]
[1748539465573,5.00177044,2650.4,2649.7,3.77396335]
[1748539465574,3.77330164,2650.2,2649.7,3.77396335]
[1748539465864,0.3607303,2650.9,2649.9,0.55]
[1748539466063,1.2287,2651.0,2650.1,13.77332683]
[1748539466267,3.77270534,2650.7,2650.1,13.77332683]
[1748539466485,3.77267755,2650.7,2650.1,13.77332683]
[1748539466775,0.75449813,2650.7,2650.2,3.77329277]
[1748539466935,5.00089625,2651.0,2649.7,2.46581697]
[1748539467147,3.77309119,2650.4,2649.9,6.18269384]
[1748539467343,3.77309119,2650.4,2650.0,10.0]
[1748539467543,3.7729294,2650.5,2650.0,13.77357976]
[1748539467745,3.77260633,2650.7,2650.2,3.77324842]
[1748539467944,4.52710279,2650.7,2650.2,3.77324842]
[1748539468455,4.52710279,2650.7,2650.1,0.55]
[1748539468679,3.77273136,2650.6,2650.1,4.32337541]
[1748539469177,5.00087049,2651.0,2650.2,5.02950012]
[1748539469178,3.77239653,2650.9,2650.2,5.02950012]
[1748539469471,3.77238086,2650.9,2650.4,3.77299548]
[1748539469674,0.45091904,2651.8,2650.8,0.55]
[1748539469860,4.00452467,2651.7,2651.0,3.77215544]
[1748539470047,0.23326295,2651.7,2651.0,3.77215697]
[1748539470246,3.77138418,2651.6,2651.0,3.77215697]
[1748539470476,0.23326295,2651.7,2651.1,3.77187767]
[1748539470681,0.23326295,2651.7,2651.2,19.22701715]
[1748539470836,0.23326295,2651.7,2651.0,0.55]
[1748539470837,3.771582,2651.5,2651.0,0.55]
[1748539471176,3.771582,2651.5,2650.9,1.2562]
[1748539471177,3.77178148,2651.3,2650.9,1.2562]
[1748539471477,3.77166524,2651.4,2650.9,5.02848306]
[1748539471882,3.77159236,2651.4,2650.9,1.2562]
[1748539472041,3.77183024,2651.3,2650.9,1.2562]
[1748539472573,3.77192019,2651.2,2650.9,1.2562]
[1748539472774,3.77183024,2651.3,2650.9,1.2562]
[1748539472775,0.75437504,2651.1,2650.9,1.2562]
[1748539473096,3.77180856,2651.3,2650.9,1.2562]
[1748539473239,3.77167276,2651.4,2650.9,5.40365446]
[1748539473437,0.4004845,2651.5,2650.9,5.40365446]
[1748539473438,0.4004845,2651.5,2650.9,1.63138238]
[1748539473668,0.23326295,2651.7,2650.9,1.63138238]
[1748539473669,3.77184657,2651.3,2650.9,1.63138238]
[1748539474576,3.77195759,2651.2,2650.9,1.63138238]
[1748539474879,3.77174803,2651.3,2650.9,11.63138238]
[1748539475240,0.23326295,2651.7,2650.9,1.63138238]
[1748539475544,3.77142684,2651.6,2651.1,10.0]
[1748539475779,4.54906146,2651.5,2651.1,10.0]
[1748539476354,0.77758721,2651.5,2650.9,5.40368598]
[1748539476560,0.77758721,2651.5,2651.0,19.85978135]
[1748539476755,0.77758721,2651.5,2651.1,10.0]
[1748539477082,3.7713389,2651.6,2651.1,3.77199415]
[1748539477241,3.7713389,2651.6,2651.0,3.77208335]
[1748539477242,4.17195075,2651.5,2651.0,3.77208335]
[1748539477441,0.40046019,2651.5,2651.0,13.77206706]
[1748539477638,0.40046019,2651.5,2651.0,6.71017846]
[1748539477842,0.40046019,2651.5,2651.1,10.0]
[1748539478053,0.23326295,2651.7,2651.2,3.77176322]
[1748539478309,3.77105612,2651.8,2651.2,13.77176702]
[1748539479012,3.77105612,2651.8,2651.3,3.77172549]
[1748539479342,1.2897,2652.2,2651.4,5.02548659]
[1748539479694,3.77015912,2652.5,2651.8,5.02482453]
[1748539479842,3.77022978,2652.4,2651.8,5.02485226]
[1748539480046,3.7704838,2652.2,2651.8,11.2539]
[1748539480354,3.77050745,2652.2,2651.8,1.2539]
[1748539481106,0.88299808,2652.4,2651.8,1.2539]
[1748539481243,3.7704686,2652.2,2651.8,1.2539]
[1748539481443,5.05960087,2652.6,2651.9,0.55]
[1748539481680,1.2897,2652.6,2651.9,0.55]
[1748539481913,3.77043557,2652.3,2651.8,1.2539]
[1748539482102,3.77043557,2652.3,2651.8,5.02489911]
[1748539482307,3.77043557,2652.3,2651.8,11.2539]
[1748539482478,3.77031255,2652.3,2651.8,11.2539]
[1748539482662,3.77040437,2652.3,2651.8,1.2539]
[1748539482866,3.77032556,2652.3,2651.9,0.55]
[1748539483070,3.77047692,2652.2,2651.8,1.2539]
[1748539483315,3.77023481,2652.4,2651.5,10.55]
[1748539483610,3.77023481,2652.4,2651.8,13.77091159]
[1748539483911,3.77041057,2652.3,2651.8,3.7710053]
[1748539484067,3.7704585,2652.2,2651.8,0.55]
[1748539484829,3.77064344,2652.1,2651.5,5.078324]
[1748539485107,3.77071035,2652.1,2651.6,0.55]
[1748539485277,3.77081215,2652.0,2651.6,5.097124]
[1748539485477,3.77081215,2652.0,2651.6,0.55]
[1748539485478,3.77079813,2652.0,2651.6,0.55]
[1748539485681,4.14787794,2652.0,2651.6,0.55]
[1748539486004,4.14787794,2652.0,2651.6,4.867124]
[1748539486213,3.77095094,2651.9,2651.6,4.867124]
[1748539486508,3.77088206,2651.9,2651.6,4.867124]
[1748539486724,0.37707981,2652.0,2651.6,4.867124]
[1748539486867,3.77085323,2652.0,2651.6,4.867124]
[1748539487068,3.77095752,2651.9,2651.6,4.867124]
[1748539487294,3.77106964,2651.8,2651.6,4.109452]
[1748539487502,3.77101245,2651.9,2651.4,6.81877688]
[1748539487705,1.2827,2652.2,2650.9,0.37518238]
[1748539488014,3.77151479,2651.5,2651.1,3.12596]
[1748539488346,3.77151479,2651.5,2651.0,10.0]
[1748539488505,3.77132046,2651.6,2651.0,11.698105]
[1748539488663,3.77159555,2651.4,2650.9,4.14614982]
[1748539488862,3.77181665,2651.3,2650.7,13.7725328]
[1748539489107,3.77179952,2651.3,2650.8,2.683074]
[1748539489310,3.77179952,2651.3,2650.9,10.0]
[1748539489621,3.77164992,2651.4,2650.7,5.56409566]
[1748539489622,3.77188949,2651.2,2650.8,0.55]
[1748539489830,3.77178263,2651.3,2650.8,0.55]
[1748539490323,3.77178263,2651.3,2651.0,10.0]
[1748539490324,3.77178307,2651.3,2651.0,10.0]
[1748539490618,3.77178307,2651.3,2650.9,10.0]
[1748539490783,3.77178307,2651.3,2650.9,13.16112]
[1748539490979,3.77190159,2651.2,2650.8,10.55]
[1748539491184,3.77193867,2651.2,2650.8,10.0]
[1748539491422,3.77193867,2651.2,2650.7,10.0]
[1748539491618,3.7716799,2651.4,2650.8,12.190073]
[1748539491619,3.77179545,2651.3,2650.8,12.190073]
[1748539491846,3.77189116,2651.2,2650.7,4.14082526]
[1748539491991,3.7718099,2651.3,2650.8,11.826073]
[1748539492188,3.7718099,2651.3,2650.9,12.90012]
[1748539492411,1.78800126,2652.1,2651.0,2.290012]
[1748539492724,3.77113362,2651.8,2651.2,3.77185682]
[1748539492881,1.2827,2652.1,2651.2,3.77185682]
[1748539493088,3.77113625,2651.8,2651.2,3.77185682]
[1748539493282,3.77113625,2651.8,2651.0,3.77215116]
[1748539493283,3.77117395,2651.7,2651.0,15.823841]
[1748539493586,3.77183937,2651.3,2650.7,0.36825892]
[1748539493787,3.77145012,2651.5,2650.9,10.0]
[1748539494021,3.77167061,2651.4,2651.0,10.0]
[1748539494205,3.77175758,2651.3,2650.7,14.15629778]
[1748539494382,3.77190714,2651.2,2650.7,0.38375543]
[1748539494586,3.77190714,2651.2,2650.9,10.0]
[1748539494790,3.77190714,2651.2,2650.6,3.77270855]
[1748539494791,3.77198829,2651.2,2650.6,3.77270855]
[1748539494988,3.77198829,2651.2,2650.7,3.77257996]
[1748539495186,3.77198829,2651.2,2650.7,10.37233099]
[1748539495434,4.14918712,2651.2,2650.7,10.37233099]
[1748539495595,4.14918712,2651.2,2650.7,4.14491914]
[1748539496126,3.77198829,2651.2,2650.7,4.14491914]
[1748539496783,3.77181089,2651.3,2650.7,4.14491914]
[1748539496989,3.7716533,2651.4,2650.8,10.0]
[1748539497233,3.77182678,2651.3,2650.8,10.0]
[1748539497590,3.77189408,2651.2,2650.7,4.14491914]
[1748539497803,3.77181542,2651.3,2650.7,4.14491914]
[1748539498291,3.77180454,2651.3,2650.7,0.37233099]
[1748539498487,3.77188838,2651.2,2650.7,3.77251613]
[1748539498727,3.77188838,2651.2,2650.6,13.77267448]
[1748539498934,3.77188838,2651.2,2650.6,4.14928268]
[1748539499102,3.77188838,2651.2,2650.8,10.0]
[1748539499513,3.77188838,2651.2,2650.7,3.77256618]
[1748539499700,3.77202262,2651.1,2650.6,10.37663213]
[1748539499906,5.05913198,2651.1,2650.6,10.37663213]
[1748539500103,3.7722874,2651.0,2650.6,0.37663213]
[1748539500291,3.7722874,2651.0,2650.4,3.77296828]
[1748539500292,3.77253356,2650.8,2650.4,10.0]
[1748539500494,0.37725336,2650.8,2650.0,10.0]
[1748539500730,3.77282949,2650.6,2650.1,3.77343891]
[1748539500931,3.77301651,2650.4,2650.0,0.37995015]
[1748539501130,3.77294182,2650.5,2650.0,3.77358405]
[1748539501310,3.77294182,2650.5,2649.6,10.0]
[1748539501311,5.05983104,2650.6,2650.1,6.91170482]
[1748539501506,5.05983104,2650.6,2650.1,3.77341782]
[1748539501719,5.05983104,2650.6,2650.1,3.77344104]
[1748539501922,1.2871,2650.6,2650.1,5.52814878]
[1748539502122,5.05985355,2650.6,2650.1,3.77344251]
[1748539502498,1.2871,2650.6,2650.1,3.77344251]
[1748539502803,5.05986027,2650.6,2650.1,3.77344251]
[1748539502997,3.77323131,2650.3,2650.0,0.37135348]
[1748539503206,3.77333919,2650.2,2649.5,3.77418127]
[1748539503534,3.77320886,2650.3,2649.8,12.321788]
[1748539503839,5.05127571,2650.5,2649.2,3.77471365]
[1748539503994,3.77259238,2650.7,2648.9,10.19117031]